[Event "FRA-ch Teams Top 16-B 2022"]
[Site "Chartres"]
[Date "2022.06.13"]
[Round "5.18"]
[White "Solodovnichenko, Yuri"]
[Black "Benitah, Yohan"]
[Result "1/2-1/2"]
[ECO "B97"]
[WhiteElo "2499"]
[BlackElo "2383"]
[Annotator "TA"]
[PlyCount "37"]
[EventDate "2022.06.09"]
[EventType "team-tourn"]
[EventCountry "FRA"]
[SourceTitle "playchess.com"]
[Source "ChessBase"]
[SourceQuality "1"]
[TimeControl "40/5400+30:1800+30"]

{[%evp 20,37,-7,-20,0,0,0,0,0,-16,0,-17,-18,-137,-148,-138,-93,-93,-99,-235]} 1. e4 {[%emt 0:00:02]} c5 {[%emt 0:00:09]} 2. Nf3 {[%emt 0:00:08]} d6 {[%emt 0:00:12]} 3. d4 {[%emt 0:00:06]} cxd4 {[%emt 0:00:08]} 4. Nxd4 {[%emt 0:00:06]} Nf6 {[%emt 0:00:06]} 5. Nc3 {[%emt 0:00:05]} a6 {[%emt 0:00:03]} 6. Bg5 {[%emt 0:00:15]} e6 {[%emt 0:01:25]} 7. f4 {[%emt 0:00:07]} Qb6 {[%emt 0:01:27]} 8. Nb3 {[%emt 0:07:03]} Nbd7 {[%emt 0:07:08]} 9. Be2 {[%emt 0:09:53]} Be7 {[%emt 0:07:45]} 10. Qd3 {[%emt 0:03:48]} Qc7 {[%emt 0:10:48]} 11. Bf3 {[%emt 0:01:01]} h6 {[%emt 0:01:28] B97: Sicilian Najdorf: Poisoned Pawn.} 12. Bxf6 {[%emt 0:03:39]} Nxf6 {[%emt 0:00:34]} 13. O-O-O {[%emt 0:00:22]} Rb8 {[%emt 0:04:01] The position is equal.} 14. Nd4 {[%emt 0:03:28]} O-O {[%emt 0:17:06] [#]} 15. g4 $146 {[%emt 0:07:59]} ({Predecessor:} 15. Kb1 b5 16. g4 b4 17. Nce2 e5 18. Nf5 Bxf5 19. exf5 Rfe8 20. h4 e4 21. Bxe4 Nxg4 {0-1 (32) Sorcinelli,A (2192)-Grammatica,A (2241) LSS email 2014}) 15... b5 $1 {[%emt 0:13:42]} 16. e5 {[%emt 0:04:20]} (16. h4 $11) 16... dxe5 $17 {[%emt 0:00:18]} 17. Nc6 {[%emt 0:00:19] [#]} Bb7 $1 {[%emt 0:08:12]} 18. Nxe7+ {[%emt 0:11:33]} Qxe7 {[%emt 0:00:25]} 19. fxe5 {[%emt 0:00:49] Weighted Error Value: White=0.30/Black=0.08 (flawless)} (19. g5 $17 {might work better.} hxg5 20. fxe5) 1/2-1/2

[Event "FRA-ch Teams Top 16-B 2022"]
[Site "Chartres"]
[Date "2022.06.13"]
[Round "5.19"]
[White "Buscara, Sevan"]
[Black "Brunner, Nicolas"]
[Result "1-0"]
[ECO "B56"]
[WhiteElo "2385"]
[BlackElo "2454"]
[Annotator "TA"]
[PlyCount "71"]
[EventDate "2022.06.09"]
[EventType "team-tourn"]
[EventCountry "FRA"]
[SourceTitle "playchess.com"]
[Source "ChessBase"]
[SourceQuality "1"]
[TimeControl "40/5400+30:1800+30"]

{[%evp 11,70,16,16,0,18,-6,-14,-23,-2,-28,-15,-138,-129,-126,-133,-135,-116,-310,-302,-290,-33,-39,-36,-40,-40,-166,30,19,31,27,31,20,63,67,63,34,62,58,61,0,0,0,0,0,0,-26,-30,-105,0,-293,-273,-362,-37,-189,-86,-58,-72,-193,-73,-62,29999]} 1. e4 {[%emt 0:00:06]} c5 {[%emt 0:00:03]} 2. Nf3 {[%emt 0:00:06]} d6 {[%emt 0:00:04]} 3. d4 {[%emt 0:00:07]} cxd4 {[%emt 0:00:04]} 4. Nxd4 {[%emt 0:00:04]} Nf6 {[%emt 0:00:06]} 5. Nc3 {[%emt 0:00:09]} a6 {[%emt 0:00:04]} 6. Nb3 {[%emt 0:00:06]} Nc6 {[%emt 0:02:12]} 7. h4 {[%emt 0:13:32] B56: Classical Sicilian: Unusual Lines.} e6 {[%emt 0:06:59] [#]} 8. h5 $146 {[%emt 0:01:35]} ({Predecessor:} 8. g4 Be7 9. Be3 h5 10. g5 Ng4 11. Bf4 Qb6 12. Qd2 Nce5 13. Rh3 Ng6 14. Bg3 {0-1 (42) Froewis,A (2143)-Sekar,B (2286) Chess.com INT 2021}) 8... h6 {[%emt 0:00:57]} 9. Qf3 {[%emt 0:07:46] The position is equal.} Qc7 {[%emt 0:04:54]} 10. g4 {[%emt 0:10:09]} b5 {[%emt 0:05:45][%cal Bb7b5,Bb5b4][%mdl 32]} 11. g5 {[%emt 0:08:42]} (11. a3 $1 $11) 11... Ne5 $17 {[%emt 0:07:44]} 12. Qe2 {[%emt 0:11:59]} hxg5 {[%emt 0:00:10]} 13. Bxg5 {[%emt 0:02:20]} b4 $1 {[%emt 0:12:26]} 14. Na4 {[%emt 0:14:13]} (14. Bxf6 $17 {was worth a try.} bxc3 15. Bxe5 dxe5 16. bxc3) 14... Bd7 $19 {[%emt 0:10:07]} 15. f4 {[%emt 0:02:48]} Bxa4 $2 {[%emt 0:03:03]} (15... Neg4 $19 16. c4 Bxa4) 16. fxe5 $15 {[%emt 0:00:14]} dxe5 {[%emt 0:00:07]} 17. h6 {[%emt 0:02:29]} Nd7 {[%emt 0:04:07][%cal Rg7h6]} 18. hxg7 {[%emt 0:01:45]} ({White must play} 18. O-O-O $1 $15) 18... Bxg7 $2 {[%emt 0:00:16]} (18... Rxh1 $19 19. g8=Q Bb5 20. Qxf7+ (20. c4 $2 bxc3 21. Qf3 Rxf1+ 22. Qxf1 Bxf1 $19) 20... Kxf7 21. Qf3+ Kg6 22. Qxh1 Kxg5) 19. Rxh8+ $11 {[%emt 0:00:38]} Bxh8 {[%emt 0:00:04]} 20. O-O-O {[%emt 0:00:39]} Bf6 {[%emt 0:04:37]} 21. Be3 {[%emt 0:04:25][%mdl 1024] White has compensation.} a5 {[%emt 0:14:34][%cal Ba6a5,Ba5a4,Ba4a3][%mdl 32]} 22. Qf2 {[%emt 0:01:10][%cal Od1d7] Strongly threatening Rxd7!} Be7 $1 {[%emt 0:00:57]} 23. Kb1 {[%emt 0:01:30]} Bc6 {[%emt 0:03:33]} 24. Nd2 {[%emt 0:00:16] White is more active.} a4 {[%emt 0:00:33]} 25. Rc1 {[%emt 0:03:44]} (25. Bd3 $1 $14) 25... Nf6 $36 {[%emt 0:05:47][%mdl 2048] Black has some pressure.} 26. Qg1 {[%emt 0:02:07] Against Ng4} a3 {[%emt 0:05:00] White must now prevent ...axb2.} (26... Nxe4 27. Nxe4 Bxe4 28. Bb5+ Bc6 29. Bb6 $16) 27. b3 {[%emt 0:01:46]} Bf8 {[%emt 0:00:24]} (27... Bxe4 $2 28. Nxe4 O-O-O 29. Ba6+ Kb8 30. Bb6 $18) 28. Bb6 {[%emt 0:04:49]} Qb7 {[%emt 0:00:28]} 29. Rd1 {[%emt 0:01:25]} (29. Re1 $11 {keeps the balance.}) 29... Rc8 {[%emt 0:01:48]} (29... Nxe4 $2 30. Nxe4 Bxe4 31. Bb5+ Ke7 32. Qg5+ f6 33. Qh5 $1 $18) (29... Rb8 $1 $17 30. Ba5 Ra8) 30. Nc4 {[%emt 0:01:52][%mdl 8192]} (30. Bd3 $11 {and White has nothing to worry.}) 30... Bxe4 $19 {[%emt 0:04:50] Hoping for ...Nd5.} ({Weaker is} 30... Nxe4 31. Qg8 Qe7 32. Ka1 $15) 31. Qg5 {[%emt 0:00:10]} Nd7 {[%emt 0:02:09]} ({Better is} 31... Nd5 $19 {Threatens to win with ...Nc3+.} 32. Rd2 Nxb6) 32. Ba5 $2 {[%emt 0:02:28]} ({White should try} 32. Bf2 $15) 32... Bg6 {[%emt 0:01:04]} ({And not} 32... Qa7 33. Be2 $17) (32... Bd5 $19 {and Black stays clearly on top. aiming for ...Ra8.} 33. Be2 Ra8) 33. Bg2 $17 {[%emt 0:00:45]} e4 {[%emt 0:00:03]} 34. Qh4 {[%emt 0:00:54] [#]} (34. Bf1 $17) 34... Qb5 {[%emt 0:01:19]} (34... Qa7 $1 $19 35. Kc1 (35. Bxe4 $2 Bxe4 36. Qxe4 Rxc4 $19) 35... Be7 36. Qh8+ Nf8) 35. Bxe4 {[%emt 0:00:31]} Rxc4 $2 {[%emt 0:00:44][%mdl 8192]} (35... Bxe4 $15 36. Qxe4 Nf6) 36. Qd8# {[%emt 0:00:06] Both players deserved the win here.  Weighted Error Value: White=0.61/Black=0.67} 1-0

[Event "FRA-ch Teams Top 16-B 2022"]
[Site "Chartres"]
[Date "2022.06.13"]
[Round "5.20"]
[White "Hamitevici, Vladimir"]
[Black "Marzolo, Cyril"]
[Result "1-0"]
[ECO "A23"]
[WhiteElo "2482"]
[BlackElo "2376"]
[Annotator "TA"]
[PlyCount "77"]
[EventDate "2022.06.09"]
[EventType "team-tourn"]
[EventCountry "FRA"]
[SourceTitle "playchess.com"]
[Source "ChessBase"]
[SourceQuality "1"]
[TimeControl "40/5400+30:1800+30"]

{[%evp 18,77,27,35,30,41,93,91,119,133,124,119,112,113,116,114,103,102,99,110,142,113,203,131,131,131,124,126,127,134,132,135,128,142,187,186,209,219,220,162,176,172,169,176,288,282,270,239,467,466,466,465,562,555,659,569,637,633,616,550,667,556]} 1. c4 {[%emt 0:03:43]} e5 {[%emt 0:02:58]} 2. g3 {[%emt 0:03:50]} Nf6 {[%emt 0:01:15]} 3. Bg2 {[%emt 0:00:07]} c6 {[%emt 0:00:40]} 4. Nf3 {[%emt 0:04:59]} e4 {[%emt 0:01:16]} 5. Nd4 {[%emt 0:00:06]} d5 {[%emt 0:00:06]} 6. cxd5 {[%emt 0:00:06]} cxd5 {[%emt 0:01:32]} 7. O-O {[%emt 0:02:47]} Bc5 {[%emt 0:05:17]} 8. Nb3 {[%emt 0:01:21]} Bb6 {[%emt 0:01:05]} 9. d3 {[%emt 0:02:47]} O-O {[%emt 0:01:51]} 10. Nc3 {[%emt 0:09:49]} (10. Bg5 {seems wilder.} h6 11. Bxf6 Qxf6 12. Nc3) 10... e3 {[%emt 0:06:20] 10...exd3 is setting a new trend. A23: English Opening: 1...e5 2 Nc3 Nf6 3 g3 c6.} 11. fxe3 {[%emt 0:00:23] [#]} (11. Bxe3 d4 12. Nxd4 Bxd4 13. Bxd4 Qxd4 $17) 11... Nbd7 $146 {[%emt 0:02:27]} (11... Re8 $14) ({Predecessor:} 11... Re8 12. Kh1 Nc6 13. Rxf6 Qxf6 14. Nxd5 Qd8 15. e4 Be6 16. d4 Qd7 17. Bf4 Bh3 18. Bf3 {½-½ (44) Batsiashvili,N (2491)-Arabidze,M (2432) Tbilisi 2021}) 12. d4 {[%emt 0:05:47]} Re8 {[%emt 0:00:38] White is better.} 13. Nxd5 {[%emt 0:01:30]} Nxd5 {[%emt 0:00:09]} 14. Bxd5 {[%emt 0:00:08]} Nf6 {[%emt 0:00:10]} 15. Bg2 {[%emt 0:00:37]} h5 {[%emt 0:00:10][%cal Oh5h4]} 16. Qd3 {[%emt 0:07:49]} Qe7 {[%emt 0:11:18]} 17. Bd2 {[%emt 0:03:51]} Be6 {[%emt 0:01:42]} 18. Rac1 {[%emt 0:02:28]} Rad8 {[%emt 0:00:53]} 19. Nc5 {[%emt 0:08:57]} Bc8 {[%emt 0:11:42]} (19... Bd5 $16) 20. b4 {[%emt 0:11:34]} h4 {[%emt 0:08:06]} 21. gxh4 {[%emt 0:00:36]} Ng4 {[%emt 0:05:13]} 22. e4 {[%emt 0:01:14] Strongly threatening h3.} Qd6 {[%emt 0:00:38][%csl Gg4][%cal Rd6h2] [#]} 23. Bf4 {[%emt 0:03:08]} Qxd4+ {[%emt 0:00:44]} 24. Qxd4 {[%emt 0:00:07]} Rxd4 {[%emt 0:00:04]} 25. a3 {[%emt 0:00:10]} a5 {[%emt 0:06:52]} 26. h3 {[%emt 0:01:52]} Nf6 {[%emt 0:02:04]} 27. e3 {[%emt 0:01:48]} Rdd8 {[%emt 0:01:31]} 28. Rfd1 {[%emt 0:02:30]} axb4 {[%emt 0:02:45]} 29. axb4 {[%emt 0:00:45]} Rxd1+ {[%emt 0:02:40]} 30. Rxd1 {[%emt 0:00:06]} Bd8 {[%emt 0:07:02]} (30... Nh7 $142 31. e5 Bxc5) 31. e5 $18 {[%emt 0:04:34]} Nh5 {[%emt 0:02:18]} 32. Bxb7 {[%emt 0:00:34]} ({Don't do} 32. Nxb7 Bxb7 33. Bxb7 Nxf4 $18) 32... Bxh3 {[%emt 0:07:55] [#]} (32... Nxf4 33. exf4 (33. Bxc8 Ne2+ 34. Kg2 Nc3 $18) 33... Bxh3) 33. Bc6 {[%emt 0:00:40] White is clearly winning.} Rf8 {[%emt 0:00:07]} 34. Bd7 {[%emt 0:00:14]} Nxf4 {[%emt 0:02:19]} 35. exf4 {[%emt 0:00:08]} Bxd7 {[%emt 0:00:08]} 36. Nxd7 {[%emt 0:00:05]} ({Less strong is} 36. Rxd7 Bxh4 37. Kg2 Rc8 $18) 36... Re8 {[%emt 0:00:04]} 37. b5 {[%emt 0:00:09]} f6 {[%emt 0:00:40]} 38. Kg2 {[%emt 0:10:10]} Kf7 {[%emt 0:02:47]} 39. Kf3 {[%emt 0:00:10] Weighted Error Value: White=0.11 (very precise) /Black=0.35} 1-0

[Event "FRA-ch Teams Top 16-B 2022"]
[Site "Chartres"]
[Date "2022.06.13"]
[Round "5.21"]
[White "Rouler, Charly"]
[Black "Savina, Anastasia"]
[Result "1/2-1/2"]
[ECO "A49"]
[WhiteElo "2345"]
[BlackElo "2348"]
[Annotator "TA"]
[PlyCount "58"]
[EventDate "2022.06.09"]
[EventType "team-tourn"]
[EventCountry "FRA"]
[SourceTitle "playchess.com"]
[Source "ChessBase"]
[SourceQuality "1"]
[TimeControl "40/5400+30:1800+30"]

{[%evp 10,58,7,6,17,14,26,19,35,23,37,27,36,41,38,43,72,65,83,89,89,73,55,58,66,60,53,20,77,58,132,120,122,10,10,0,7,0,168,51,29,0,0,0,0,0,0,0,1,0,0]} 1. d4 {[%emt 0:00:04]} Nf6 {[%emt 0:00:26]} 2. Nf3 {[%emt 0:01:04]} g6 {[%emt 0:00:20]} 3. g3 {[%emt 0:00:16]} Bg7 {[%emt 0:01:12]} 4. Bg2 {[%emt 0:00:06]} c5 {[%emt 0:00:46]} 5. O-O {[%emt 0:04:39]} cxd4 {[%emt 0:11:33]} 6. Nxd4 {[%emt 0:00:06]} d5 {[%emt 0:01:37] A49: 1 d4 Nf6 2 Nf3 g6 3 g3: Anti-King's Indian systems.} 7. Nb3 {[%emt 0:00:26][%cal Oc2c4] [#] seems to push 7.c4 aside.} a5 $146 {[%emt 0:11:36]} ({Predecessor:} 7... Nc6 8. Nc3 e6 9. a4 O-O 10. Re1 Re8 11. a5 h6 12. Be3 Bd7 13. Nc5 Nxa5 {0-1 (36) Howell,D (2658)-Vidit,S (2726) chess24.com INT 2021}) 8. a4 {[%emt 0:06:57][%cal Oc2c4]} Nc6 {[%emt 0:02:42]} 9. Nc3 {[%emt 0:00:49][%cal Rc3d5]} Nb4 {[%emt 0:00:47]} 10. Bf4 {[%emt 0:13:40]} O-O {[%emt 1:04:31]} 11. Nb5 {[%emt 0:04:42]} Bf5 {[%emt 0:00:00]} 12. N3d4 {[%emt 0:04:53]} Rc8 {[%emt 0:00:00][%cal Rf5c2]} 13. c3 {[%emt 0:04:21]} Nc6 {[%emt 0:00:00]} 14. Nxf5 {[%emt 0:04:22]} gxf5 {[%emt 0:00:00]} 15. Qb3 {[%emt 0:03:17] White is more active.} e6 {[%emt 0:00:00]} 16. Rad1 {[%emt 0:07:10]} Qb6 {[%emt 0:00:00]} 17. c4 {[%emt 0:10:05][%cal Rc4d5]} Nb4 {[%emt 0:00:00]} 18. Bd6 {[%emt 0:09:40][%cal Rc4d5] This bishop pair is nice.} dxc4 {[%emt 0:04:00]} (18... Rxc4 $11 19. Bxf8 Kxf8) 19. Qf3 $16 {[%emt 0:03:09]} Nbd5 {[%emt 0:00:00]} 20. Bxf8 {[%emt 0:01:24]} Bxf8 {[%emt 0:00:00]} 21. Rc1 {[%emt 0:03:41]} (21. e3 $16) 21... Ne4 $1 $11 {[%emt 0:00:00]} 22. Qh5 {[%emt 0:04:23] Bxe4 is the strong threat.} Ndf6 $36 {[%emt 0:00:00][%cal Bd5f6,Bf6e4,Be4d2][%mdl 2080] Black has the initiative.} 23. Qh4 {[%emt 0:05:19]} Bc5 {[%emt 0:00:00]} (23... Nxf2 $1 $11 {and Black stays safe.} 24. Qg5+ (24. Rxf2 Ng4 $17) (24. Qxf6 $2 {is a self mate.} Nh3+ 25. Kh1 Qg1+ 26. Rxg1 Nf2#) 24... Kh8 25. Qxf6+ Bg7 26. Qxg7+ (26. Qxf7 $2 {gets mated.} Nh3+ 27. Kh1 Qg1+ 28. Rxg1 Nf2#) 26... Kxg7 27. Rxf2 Rd8) 24. Bxe4 {[%emt 0:01:52]} (24. e3 $18) 24... Nxe4 $14 {[%emt 0:00:00]} 25. e3 {[%emt 0:01:29] Strongly threatening Rcd1.} (25. g4 $5 {[%cal Rg1g2]}) 25... Nd2 $1 {[%emt 0:02:55] [#] Hoping for ...Nf3+. The position is equal.} 26. Qg5+ {[%emt 0:02:34]} Kh8 {[%emt 0:00:25] Threatens to win with ...Nf3+.} 27. Qf6+ {[%emt 0:00:12]} Kg8 {[%emt 0:00:01]} 28. Qg5+ {[%emt 0:02:00]} Kh8 {[%emt 0:00:01] And now ...Nf3+ would win.} 29. Qf6+ {[%emt 0:00:10]} Kg8 {[%emt 0:00:00] Weighted Error Value: White=0.18 (very precise) /Black=0.21 (precise)} 1/2-1/2

[Event "FRA-ch Teams Top 16-B 2022"]
[Site "Chartres"]
[Date "2022.06.13"]
[Round "5.22"]
[White "Philippe, Christophe"]
[Black "Crut, Aurelien"]
[Result "1/2-1/2"]
[ECO "D45"]
[WhiteElo "2379"]
[BlackElo "2355"]
[Annotator "TA"]
[PlyCount "95"]
[EventDate "2022.06.09"]
[EventType "team-tourn"]
[EventCountry "FRA"]
[SourceTitle "playchess.com"]
[Source "ChessBase"]
[SourceQuality "1"]
[TimeControl "40/5400+30:1800+30"]

{[%evp 15,95,-1,20,31,45,43,45,45,39,-36,-48,-60,-41,-37,-51,-46,0,0,0,-2,-10,-14,0,0,83,0,0,-10,0,0,0,0,0,0,19,22,93,0,30,32,43,44,45,45,45,45,42,35,30,21,32,32,31,16,34,34,38,17,87,0,164,92,92,87,80,69,69,26,47,47,47,47,70,77,99,84,70,0,71,0,59,0]} 1. d4 {[%emt 0:00:09]} d5 {[%emt 0:00:14]} 2. c4 {[%emt 0:00:11]} e6 {[%emt 0:00:30]} 3. Nc3 {[%emt 0:00:15]} c6 {[%emt 0:00:31]} 4. e3 {[%emt 0:00:24]} Nf6 {[%emt 0:00:35]} 5. Nf3 {[%emt 0:00:15]} Nbd7 {[%emt 0:00:22]} 6. Qc2 {[%emt 0:00:57]} Bd6 {[%emt 0:01:05]} 7. g4 {[%emt 0:02:02]} h6 {[%emt 0:01:21]} 8. Bd2 {[%emt 0:02:10]} Qe7 {[%emt 0:07:32]} 9. Rg1 {[%emt 0:09:47] D45: Semi-Slav: 5 e3.} dxc4 {[%emt 0:08:52]} 10. Bxc4 {[%emt 0:03:47]} b5 {[%emt 0:01:40]} 11. Be2 {[%emt 0:07:33]} Bb7 {[%emt 0:05:59]} 12. O-O-O {[%emt 1:09:00]} (12. e4 $14 b4 13. e5 bxc3 14. Qxc3) 12... Rc8 $15 {[%emt 0:15:20] [#]} 13. e4 $146 {[%emt 0:00:00]} ({Predecessor:} 13. Kb1 c5 14. Qb3 a6 15. Rc1 c4 16. Qd1 Nb6 17. Ne5 Ne4 18. Nxe4 Bxe4+ 19. Ka1 {0-1 (43) Riegler,D (2127)-Kyas,M (2114) Germany 2010}) 13... b4 {[%emt 0:05:30]} 14. e5 {[%emt 0:00:00]} bxc3 {[%emt 0:00:46]} 15. Bxc3 {[%emt 0:00:00]} Nd5 {[%emt 0:11:16] [#] Hoping for ...Bb4.} 16. exd6 {[%emt 0:00:00]} Qxd6 {[%emt 0:00:03]} 17. Ne5 {[%emt 0:00:00]} Nxe5 {[%emt 0:07:56]} 18. dxe5 {[%emt 0:00:00]} Qc5 {[%emt 0:00:53]} 19. Bd4 {[%emt 0:00:00]} Qxc2+ {[%emt 0:06:36]} 20. Kxc2 {[%emt 0:00:00]} c5 {[%emt 0:00:41]} 21. Bc3 {[%emt 0:00:00]} Ke7 {[%emt 0:03:19]} 22. b3 {[%emt 0:00:00]} Nf4 {[%emt 0:03:57]} 23. Bb5 {[%emt 0:00:00] And now Rd7+ would win.} Rhd8 {[%emt 0:06:19] Inhibits Rd7+.} 24. Ba5 {[%emt 0:00:00]} Be4+ {[%emt 0:03:43]} 25. Kb2 {[%emt 0:00:00]} Rd4 {[%emt 0:02:37]} (25... Rd5 $1 $11 {remains equal.}) 26. Bc3 {[%emt 0:00:00] A strong pair of Bishops.} (26. Ba6 $16 Rg8 27. Rxd4 cxd4 28. Rd1) 26... Rxd1 {[%emt 0:02:10]} 27. Rxd1 {[%emt 0:00:00]} Bc6 {[%emt 0:01:41] Against Rd7+} 28. Ba6 {[%emt 0:01:08]} Rd8 {[%emt 0:00:12]} 29. Rxd8 {[%emt 0:03:14]} (29. Rd6 {keeps more tension.} Bf3 30. Bd2 Nd5 31. g5) 29... Kxd8 $14 {[%emt 0:00:03][%mdl 4096] Endgame KBB-KBN} 30. Bd2 {[%emt 0:00:14]} Nd5 {[%emt 0:01:21]} 31. f4 {[%emt 0:02:25] Prevents g5.} Kc7 {[%emt 0:00:18]} 32. Bd3 {[%emt 0:00:14]} Nb4 {[%emt 0:01:10]} 33. Be2 {[%emt 0:00:53]} Be4 {[%emt 0:00:56]} 34. h4 {[%emt 0:00:47]} Nd5 {[%emt 0:00:12]} 35. h5 {[%emt 0:00:35]} Kc6 {[%emt 0:00:19]} 36. a4 {[%emt 0:00:44]} Nc7 {[%emt 0:00:51]} (36... Nb4 $11) 37. Ba5 {[%emt 0:00:29]} (37. b4 $16) 37... Bh7 $2 {[%emt 0:00:33] [#]} (37... Nd5 $11 {and Black stays safe.}) 38. Bf3+ {[%emt 0:00:41]} (38. b4 $1 $18) 38... Nd5 $16 {[%emt 0:00:16]} 39. Bd2 {[%emt 0:00:42]} Bd3 {[%emt 0:00:38]} 40. g5 {[%emt 0:01:18]} Bf5 $1 {[%emt 0:00:55]} 41. Be2 {[%emt 0:08:10]} Kd7 {[%emt 0:03:30]} 42. a5 {[%emt 0:01:47]} Kc6 {[%emt 0:09:58]} 43. Ka3 {[%emt 0:02:59]} Kb7 {[%emt 0:07:03]} 44. Ka4 {[%emt 0:04:14] Threatens to win with Kb5.} a6 {[%emt 0:01:42]} 45. Bf3 {[%emt 0:02:10]} Kc7 {[%emt 0:00:40]} 46. Be2 {[%emt 0:03:16]} Kb7 {[%emt 0:00:07]} 47. Bf3 {[%emt 0:01:06]} Kc7 {[%emt 0:00:13]} 48. Be2 {[%emt 0:00:19] Weighted Error Value: White=0.17 (very precise) /Black=0.20 (precise)} (48. gxh6 $14 gxh6 49. Be2) 1/2-1/2

[Event "FRA-ch Teams Top 16-B 2022"]
[Site "Chartres"]
[Date "2022.06.13"]
[Round "5.23"]
[White "Brailly-Vignal, Bastien"]
[Black "Nezar, Mustapha"]
[Result "1-0"]
[ECO "D45"]
[WhiteElo "2372"]
[BlackElo "2357"]
[Annotator "TA"]
[PlyCount "101"]
[EventDate "2022.06.09"]
[EventType "team-tourn"]
[EventCountry "FRA"]
[SourceTitle "playchess.com"]
[Source "ChessBase"]
[SourceQuality "1"]
[TimeControl "40/5400+30:1800+30"]

{[%evp 13,101,9,25,13,16,18,32,13,16,0,7,5,0,0,0,0,0,2,21,-6,8,10,27,18,29,33,27,33,58,0,27,15,49,0,0,4,48,50,52,35,37,41,129,131,146,125,189,191,201,162,143,87,151,132,154,148,138,133,139,50,74,73,220,91,161,145,153,163,171,-326,145,151,781,798,1027,1002,993,917,796,795,29963,29963,29972,29973,29977,29978,29980,29978,29977,29978]} 1. d4 {[%emt 0:00:17]} d5 {[%emt 0:00:11]} 2. c4 {[%emt 0:00:08]} c6 {[%emt 0:00:09]} 3. Nc3 {[%emt 0:00:05]} Nf6 {[%emt 0:00:39]} 4. e3 {[%emt 0:00:42]} e6 {[%emt 0:00:36]} 5. Nf3 {[%emt 0:00:13]} Nbd7 {[%emt 0:00:14]} 6. Qc2 {[%emt 0:00:12]} b6 {[%emt 0:06:42]} 7. cxd5 {[%emt 0:06:31]} exd5 {[%emt 0:03:53]} 8. Bd3 {[%emt 0:00:45] Threatening 0-0. D45: Semi-Slav: 5 e3.} Be7 {[%emt 0:02:13]} 9. O-O {[%emt 0:00:56] With the idea e4.} O-O {[%emt 0:01:31]} 10. Ne5 {[%emt 0:06:39] White is slightly better.} Bb7 {[%emt 0:03:25]} 11. Bd2 {[%emt 0:06:25]} c5 {[%emt 0:06:33]} 12. Rad1 {[%emt 0:03:19]} a6 {[%emt 0:05:49]} 13. Be1 {[%emt 0:06:02]} c4 {[%emt 0:17:11]} 14. Bf5 {[%emt 0:11:39]} g6 {[%emt 0:02:01]} 15. Bh3 {[%emt 0:02:14]} b5 {[%emt 0:00:57] [#]} 16. f3 $146 {[%emt 0:06:02]} ({Predecessor:} 16. a3 Qe8 17. f4 Nb6 18. g4 Nfd7 19. Bg2 Rd8 20. Nf3 Bc6 21. Bd2 a5 22. e4 {½-½ (31) Pierzak,R (2497)-Tinture,L (2432) ICCF email 2015}) 16... Qc7 {[%emt 0:14:02]} 17. Bg3 {[%emt 0:07:40] And now Nxd7 would win.} Bd6 {[%emt 0:05:02]} 18. Nxd7 {[%emt 0:11:48]} Nxd7 {[%emt 0:00:21]} 19. Bxd6 {[%emt 0:00:15]} Qxd6 {[%emt 0:00:07]} 20. e4 $1 {[%emt 0:03:29] Against f5} f6 {[%emt 0:11:31]} 21. a3 {[%emt 0:03:51]} (21. a4 $1 $14) 21... Nb6 {[%emt 0:01:44]} 22. Rfe1 {[%emt 0:02:36]} (22. e5 $5 {[%cal Re5d6]} Qc6 23. Qd2 $14) 22... Rfe8 {[%emt 0:00:47]} 23. g3 {[%emt 0:02:26]} (23. Qf2 $14) 23... Bc6 $11 {[%emt 0:03:07]} 24. Qf2 {[%emt 0:00:49][%cal Oe4e5]} Rab8 {[%emt 0:03:10]} 25. e5 {[%emt 0:02:52]} Qe7 {[%emt 0:03:43]} ({Weaker is} 25... fxe5 26. dxe5 Qe7 27. f4 $16) 26. exf6 {[%emt 0:00:11]} Qxf6 {[%emt 0:07:52]} 27. Re5 {[%emt 0:15:54]} Qd6 {[%emt 0:00:00]} ({Less strong is} 27... Rxe5 28. dxe5 Qe7 29. f4 $16) (27... a5 $1 $14) 28. Rde1 $16 {[%emt 0:00:00]} Bd7 {[%emt 0:00:00] [#]} 29. Qe3 $1 {[%emt 0:00:00]} Rxe5 {[%emt 0:00:00]} (29... Rf8 $16) (29... Bc6 30. f4) 30. dxe5 $18 {[%emt 0:00:00]} Qe7 {[%emt 0:00:00]} 31. e6 {[%emt 0:00:00]} Bc6 {[%emt 0:00:00]} 32. Qd4 {[%emt 0:00:00]} (32. f4 $142 $1) 32... a5 {[%emt 0:00:00]} ({Black should play} 32... Na4) 33. f4 $16 {[%emt 0:00:00] White is much more active.} b4 {[%emt 0:00:00]} 34. axb4 {[%emt 0:00:00]} axb4 {[%emt 0:00:00]} 35. Nd1 {[%emt 0:00:00][%cal Bc3d1,Bd1f2,Bf2g4,Bg4h6,Bh6f7][%mdl 32]} Nd7 {[%emt 0:01:14]} 36. Qe3 {[%emt 0:00:00]} ({White should try} 36. Ne3 $16 Nf6 37. f5) 36... Nc5 {[%emt 0:01:11]} 37. Nf2 {[%emt 0:00:00] Against Nd3} Rd8 {[%emt 0:01:25]} (37... Rf8 $16) 38. Qd4 {[%emt 0:00:00]} (38. Ng4 $18 {and White stays clearly on top.} Ne4 39. Qd4) 38... Nb3 {[%emt 0:01:12]} (38... h5 $16) 39. Qe5 $1 $18 {[%emt 0:00:00] Threatens to win with Ng4.} Rf8 {[%emt 0:00:50] [#]} 40. Ng4 $1 {[%emt 0:02:54][%cal Rg4h6]} h5 {[%emt 0:00:32] [#]} 41. Nh6+ {[%emt 0:12:35]} Kh7 {[%emt 0:01:38]} 42. Nf7 {[%emt 0:01:50] Strongly threatening f5. Really sharp!} Qa7+ $2 {[%emt 0:12:48]} (42... Qc5+ $16 43. Re3 Qd4) 43. Kh1 {[%emt 0:04:46] Hoping for Qg5.} d4+ {[%emt 0:06:01]} 44. Bg2 {[%emt 0:00:39]} Bxg2+ {[%emt 0:06:14]} 45. Kxg2 {[%emt 0:00:03] Qf6 would kill now.} Qb7+ {[%emt 0:00:08]} 46. Kh3 {[%emt 0:04:29] White threatens Qf6 and mate.} Rxf7 {[%emt 0:03:59]} 47. exf7 {[%emt 0:00:01] White mates.} Qxf7 {[%emt 0:00:08]} 48. Qd6 {[%emt 0:01:16]} Qf5+ {[%emt 0:00:40]} 49. Kg2 {[%emt 0:00:02]} d3 {[%emt 0:01:35]} 50. Qd8 {[%emt 0:02:18]} Qf7 {[%emt 0:01:52]} 51. Re7 {[%emt 0:00:49] Weighted Error Value: White=0.12 (very precise) /Black=0.39} 1-0